bitfinex/quotes_SOLUSD_20240930
["timestamp","ask_amount","ask_price","bid_price","bid_amount"]
[1727723835389,6.4544,154.94,154.89,6.456]
[1727723835593,6.4541,154.94,154.89,18.00042243]
[1727723836194,6.4547,154.93,154.89,18.00042243]
[1727723836491,16.1327,154.97,154.9,23.963976]
[1727723836680,6.4538,154.95,154.9,23.963976]
[1727723837382,6.4538,154.95,154.9,16.2175]
[1727723837585,6.4533,154.96,154.91,19.29045868]
[1727723838878,6.4528,154.97,154.92,6.4548]
[1727723839080,6.4528,154.97,154.93,7.74501144]
[1727723839280,6.4525,154.98,154.93,11.54442243]
[1727723839481,6.4531,154.97,154.93,11.54442243]
[1727723840385,16.2717,155.03,154.93,11.54442243]
[1727723840596,6.4533,154.96,154.93,11.54442243]
[1727723841372,6.4541,154.94,154.92,6.3774]
[1727723841695,23.776884,154.98,154.9,16.2175]
[1727723841896,6.4542,154.94,154.9,16.2175]
[1727723842094,6.4545,154.93,154.9,16.2175]
[1727723842398,6.455,154.92,154.88,12.6838]
[1727723842772,23.776884,154.98,154.88,6.2273]
[1727723842973,6.4556,154.91,154.88,6.2273]
[1727723846196,16.3864,154.97,154.89,1.29104155]
[1727723846377,6.4542,154.94,154.89,7.74714155]
[1727723847675,32.2506,155.04,154.92,27.68122243]
[1727723847676,6.4531,154.97,154.92,27.68122243]
[1727723847876,6.4531,154.97,154.92,34.13602243]
[1727723848099,16.1278,155.02,154.92,34.13602243]
[1727723848100,6.4533,154.96,154.92,22.5916]
[1727723848284,16.3514,155.03,154.92,22.5916]
[1727723848285,6.4537,154.95,154.92,16.1368]
[1727723848793,6.4542,154.94,154.9,26.4554]
[1727723849184,6.4542,154.94,154.9,6.4554]
[1727723849384,6.4538,154.95,154.91,6.4552]
[1727723850292,6.4538,154.95,154.89,27.68442243]
[1727723850479,6.4538,154.95,154.9,6.4556]
[1727723851394,6.4538,154.95,154.91,1.29083793]
[1727723851595,6.4534,154.96,154.92,6.4548]
[1727723852996,16.13,154.99,154.91,27.68242243]
[1727723853186,6.4528,154.97,154.93,6.4544]
[1727723853389,6.4528,154.97,154.94,1.29061297]
[1727723854383,16.3514,155.03,154.94,6.454]
[1727723854384,6.4526,154.98,154.94,6.454]
[1727723854710,6.4526,154.98,154.92,16.4685]
[1727723854711,6.4517,155.0,154.95,17.99792243]
[1727723854876,6.4517,155.0,154.95,34.13182243]
[1727723855080,6.452,154.99,154.95,22.5874]
[1727723855683,6.452,154.99,154.95,16.1339]
[1727723857280,32.4776,155.03,154.95,16.1339]
[1727723857499,6.4518,155.0,154.96,6.4532]
[1727723857689,6.4518,155.0,154.95,16.1339]
[1727723857880,6.4518,155.0,154.95,22.5874]
[1727723859499,6.4518,155.0,154.96,6.4532]
[1727723861379,6.4521,154.99,154.95,22.5875]
[1727723861586,6.4521,154.99,154.95,16.1339]
[1727723862386,6.4521,154.99,154.95,22.5875]
[1727723862992,6.4521,154.99,154.96,1.290401]
[1727723864508,6.4521,154.99,154.95,22.5875]
[1727723865507,32.4776,155.03,154.94,17.90732243]
[1727723865508,6.4524,154.98,154.94,12.8169]
[1727723866084,6.4528,154.97,154.94,6.3629]
[1727723866279,16.1303,154.99,154.94,6.3629]
[1727723866492,6.4532,154.96,154.92,22.9233]
[1727723867797,6.4532,154.96,154.93,1.29065981]
[1727723868178,16.1303,154.99,154.93,1.29065981]
[1727723868383,6.4529,154.97,154.93,6.4545]
[1727723868596,6.4529,154.97,154.94,1.29065873]
[1727723870703,6.4529,154.97,154.95,1.29057607]
[1727723871496,6.4529,154.97,154.93,6.4545]
[1727723876516,6.4529,154.97,154.94,1.29057741]
[1727723877109,6.4529,154.97,154.93,6.4545]
[1727723878419,6.4529,154.97,154.94,1.29058119]
[1727723879327,6.4525,154.98,154.94,7.74458119]
[1727723879622,6.4525,154.98,154.95,1.29056648]
[1727723879839,6.4525,154.98,154.94,6.454]
[1727723880627,16.1293,155.0,154.92,16.4685]
[1727723880925,6.4535,154.96,154.92,22.923]
[1727723881104,16.1293,155.0,154.92,22.923]
[1727723881305,6.453,154.97,154.92,22.923]
[1727723881720,6.453,154.97,154.92,34.46742243]
[1727723882206,6.453,154.97,154.93,6.4543]
[1727723882506,6.453,154.97,154.94,1.29063178]
[1727723883724,6.4533,154.96,154.92,41.68125261]
[1727723884025,23.776884,155.02,154.92,44.14982243]
[1727723884204,6.4525,154.98,154.94,6.454]
[1727723884404,6.4525,154.98,154.95,1.29055277]
[1727723884607,6.4521,154.99,154.95,6.4536]
[1727723885030,6.4516,155.0,154.96,7.74367377]
[1727723886023,6.4516,155.0,154.97,1.29042447]
[1727723886222,6.4516,155.0,154.96,6.4532]
[1727723886223,6.4509,155.02,154.98,1.2902868]
[1727723886427,6.4509,155.02,154.98,7.7423868]
[1727723886623,16.1233,155.06,154.99,6.4519]
[1727723886817,16.1233,155.06,155.0,1.29013356]
[1727723886818,6.45,155.04,155.0,1.29013356]
[1727723887732,6.4504,155.03,154.99,6.4519]
[1727723889027,6.4504,155.03,155.0,1.29013679]
[1727723891318,6.4504,155.03,154.99,6.4519]
[1727723891635,6.4504,155.03,155.0,1.29013573]
[1727723892634,16.1233,155.06,155.0,6.4515]
[1727723892635,6.45,155.04,155.0,6.4515]
[1727723898136,6.4508,155.02,154.98,50.14222243]
[1727723903044,32.056,155.07,154.99,7.7420394]
[1727723903230,6.45,155.04,155.0,6.4515]
[1727723904223,6.4495,155.05,155.01,7.74098332]
[1727723906442,6.4495,155.05,155.01,6.451]
[1727723910559,6.4503,155.03,155.0,16.1286]
[1727723912230,6.45,155.04,155.0,22.5801]
[1727723914964,15.934,155.07,155.0,16.1286]
[1727723915137,6.4503,155.03,155.0,16.1286]
[1727723915651,6.4501,155.04,155.0,22.5801]
[1727723916174,6.4503,155.03,155.0,22.5801]
[1727723916848,15.934,155.07,155.0,22.5801]
[1727723917050,6.45,155.04,155.0,22.5801]
[1727723920342,6.4491,155.06,155.02,34.12172243]
[1727723920538,31.9366,155.11,155.03,1.28991579]
[1727723920850,6.4484,155.08,155.04,17.99422243]
[1727723921049,6.4484,155.08,155.05,1.28974532]
[1727723921572,6.4487,155.07,155.04,11.54442243]
[1727723921771,6.4485,155.08,155.04,11.54442243]
[1727723922437,6.4485,155.08,155.03,6.45]
[1727723923752,6.448,155.09,155.05,6.4494]
[1727723923959,6.448,155.09,155.06,1.28963185]
[1727723924466,6.448,155.09,155.04,34.11852243]
[1727723924671,15.8182,155.11,155.04,34.11852243]
[1727723924854,6.4483,155.08,155.04,34.11852243]
[1727723925358,15.8182,155.11,155.05,6.4494]
[1727723925359,6.4477,155.1,155.05,6.4494]
[1727723925665,6.4484,155.08,155.04,34.11852243]
[1727723925849,6.4484,155.08,155.04,22.5741]
[1727723926053,6.4487,155.07,155.03,6.4503]
[1727723926566,6.4487,155.07,155.02,11.54442243]
[1727723926767,6.4493,155.06,155.02,6.4507]
[1727723927166,6.4493,155.06,155.01,16.1273]
[1727723927167,16.119,155.1,155.01,22.5783]
[1727723927661,6.4492,155.06,155.01,22.5783]
[1727723929846,16.119,155.1,155.01,16.1273]
[1727723929847,23.776884,155.09,155.01,16.1273]
[1727723930259,23.776884,155.1,155.0,6.1229]
[1727723930464,6.4514,155.01,154.98,16.0149]
[1727723930654,6.4508,155.02,154.98,16.0149]
[1727723931055,6.4513,155.01,154.98,16.0149]
[1727723931769,6.4509,155.02,154.98,16.0149]
[1727723931975,6.4509,155.02,154.98,22.4672]
[1727723932188,6.4509,155.02,154.98,16.0149]
[1727723933075,6.4509,155.02,154.98,20.0]
[1727723933366,6.4517,155.0,154.96,12.6908]
[1727723933697,6.4517,155.0,154.96,16.20448712]
[1727723935774,16.1252,155.04,154.96,6.2377]
[1727723936079,6.452,154.99,154.96,9.75222665]
[1727723936255,6.4517,155.0,154.96,9.75222665]
[1727723937171,6.4521,154.99,154.96,9.75222665]
[1727723938667,6.4517,155.0,154.96,6.2377]
[1727723938867,6.4517,155.0,154.96,9.7512678]
[1727723939974,6.4517,155.0,154.96,16.20403705]
[1727723940673,6.4517,155.0,154.96,12.6909]
[1727723940879,6.4517,155.0,154.96,16.20494594]
[1727723942679,16.1252,155.04,154.96,9.75174594]
[1727723942881,6.4513,155.01,154.97,7.74311367]
[1727723943084,16.1252,155.04,154.96,9.75174594]
[1727723943375,6.4521,154.99,154.96,9.75174594]
[1727723943759,6.4517,155.0,154.96,16.20494594]
[1727723944479,6.452,154.99,154.96,3.51404594]
[1727723944688,6.452,154.99,154.95,22.5872]
[1727723944983,6.452,154.99,154.96,3.51532515]
[1727723945760,6.4525,154.98,154.96,3.51532515]
[1727723945961,6.4525,154.98,154.95,3.51532515]
[1727723947179,6.4525,154.98,154.96,7.23383404]
[1727723947377,6.4525,154.98,154.97,7.23383404]
[1727723947583,10.34098133,154.97,154.86,16.1429]
[1727723947790,23.776884,154.96,154.87,3.51829948]
[1727723947990,34.11786533,154.96,154.86,16.1429]
[1727723948480,34.11786533,154.96,154.87,3.52023249]
[1727723948703,34.11786533,154.96,154.86,16.1429]
[1727723948704,6.4557,154.9,154.86,16.1429]
[1727723949205,16.1369,154.93,154.84,20.0]
[1727723949486,16.1369,154.93,154.83,12.4715]
[1727723949487,6.457,154.87,154.83,12.4715]
[1727723949691,31.6722,154.93,154.83,6.0132]
[1727723949899,6.4561,154.9,154.85,6.4577]
[1727723950266,6.4561,154.9,154.86,6.4573]
[1727723950491,6.4561,154.9,154.85,6.4577]
[1727723954267,31.6722,154.93,154.85,20.0]
[1727723954268,15.5353,154.93,154.85,20.0]
[1727723954485,15.5353,154.93,154.84,11.54442243]
[1727723954486,6.4552,154.92,154.87,6.4569]
[1727723954692,6.4554,154.91,154.86,16.1431]
[1727723954897,6.4554,154.91,154.86,22.6004]
[1727723955594,6.4559,154.9,154.86,22.6004]
[1727723965506,6.6249,154.95,154.87,6.4569]
[1727723965507,6.4554,154.91,154.87,6.4569]
[1727723965716,15.6627,154.97,154.89,26.1454]
[1727723966011,9.30805139,155.01,154.89,26.1454]
[1727723966012,6.4533,154.96,154.92,22.5918]
[1727723966179,6.4533,154.96,154.92,23.88258162]
[1727723967315,6.4542,154.94,154.9,6.4556]
[1727723967814,23.776884,154.99,154.9,6.4556]
[1727723967980,6.4537,154.95,154.9,6.4556]
[1727723969902,6.4537,154.95,154.89,42.2856]
[1727723970215,16.1295,155.0,154.91,16.1379]
[1727723970404,6.4531,154.97,154.92,6.4548]
[1727723972010,6.4533,154.96,154.92,6.4548]
[1727723972616,6.454,154.95,154.91,16.1379]
[1727723972791,47.9169,155.02,154.89,26.1454]
[1727723972792,6.4541,154.94,154.89,26.1454]
[1727723972992,6.4541,154.94,154.89,32.6012]
[1727723973212,6.4541,154.94,154.89,26.1454]
[1727723973421,6.4541,154.94,154.91,20.0]
[1727723974094,16.1316,154.98,154.91,20.0]
[1727723974421,6.4537,154.95,154.91,20.0]
[1727723976701,23.776884,154.97,154.89,6.1454]
[1727723977287,6.4553,154.91,154.89,6.1454]
[1727723977607,6.4553,154.91,154.88,16.6519]
[1727723985527,6.4553,154.91,154.87,6.4569]
[1727723994504,6.4553,154.91,154.88,6.4565]
[1727723995330,6.455,154.92,154.88,6.4565]
[1727723997503,6.455,154.92,154.89,1.29108256]
[1727723998327,6.455,154.92,154.88,6.4565]
[1727724000546,6.4554,154.91,154.87,22.5993]
[1727724002136,6.457,154.88,154.84,22.6027]
[1727724002337,6.4569,154.88,154.84,22.6029]
[1727724002915,32.2701,154.95,154.87,6.4566]
[1727724002916,6.4555,154.91,154.87,6.4566]
[1727724003216,6.4555,154.91,154.86,22.6005]
[1727724003914,16.1348,154.95,154.88,6.4565]
[1727724003915,6.455,154.92,154.88,6.4565]
[1727724004123,6.455,154.92,154.89,1.29106649]
[1727724006738,6.4542,154.94,154.89,12.83548892]
[1727724007131,6.4537,154.95,154.89,12.83548892]
[1727724008213,15.1919,154.96,154.89,12.83548892]
[1727724008414,6.4541,154.94,154.9,6.4557]
[1727724008638,6.4541,154.94,154.91,1.29083644]
[1727724010228,6.4538,154.95,154.91,1.29083644]
[1727724010915,6.4538,154.95,154.91,7.74603644]
[1727724011640,6.4538,154.95,154.91,6.4552]
[1727724012848,6.4541,154.94,154.9,22.5944]
[1727724013939,15.1919,154.96,154.89,11.93172243]
[1727724015051,6.4542,154.94,154.9,6.4557]
[1727724017033,6.4538,154.95,154.91,7.74614039]
[1727724017340,6.4538,154.95,154.89,28.07172243]
[1727724018026,6.4538,154.95,154.9,6.4554]
[1727724018220,15.1919,154.96,154.89,16.5273]
[1727724018528,6.4553,154.91,154.89,0.3873]
[1727724019513,6.455,154.92,154.89,0.3873]
[1727724022146,6.4544,154.94,154.89,6.8433]
[1727724022346,31.3254,154.96,154.9,17.42994043]
[1727724022347,6.4537,154.95,154.9,17.42994043]
[1727724022549,6.4535,154.96,154.92,6.4545]
[1727724022726,6.4535,154.96,154.93,1.29075712]
[1727724024532,6.4535,154.96,154.92,6.4545]
[1727724024730,6.4537,154.95,154.91,6.4552]
[1727724025351,6.4533,154.96,154.92,7.74561592]
[1727724026154,6.4533,154.96,154.92,6.4549]
[1727724027951,6.4533,154.96,154.93,1.29068401]
[1727724028329,6.4533,154.96,154.92,6.4549]
[1727724029249,6.4533,154.96,154.93,1.2906831]
[1727724029558,6.4529,154.97,154.93,7.7448831]
[1727724030037,57.68985139,155.02,154.93,21.2906831]
[1727724030038,25.43565139,155.02,154.93,21.2906831]
[1727724030244,6.4519,155.0,154.96,6.4532]
[1727724030424,6.4525,154.98,154.94,16.1348]
[1727724030631,6.4525,154.98,154.94,22.5888]
[1727724033950,6.4521,154.99,154.95,6.4536]
[1727724034152,6.4516,155.0,154.96,7.74358971]
[1727724034450,21.6643,155.04,154.94,27.67922243]
[1727724034752,6.4512,155.01,154.97,6.4528]
[1727724034928,6.4512,155.01,154.96,6.4531]
[1727724035135,6.4512,155.01,154.94,27.67922243]
[1727724035136,6.4512,155.01,154.95,23.776884]
[1727724035447,6.4512,155.01,154.97,6.4528]
[1727724035655,6.4512,155.01,154.98,1.29028471]
[1727724035846,16.1262,155.03,154.93,16.5229]
[1727724036052,6.4531,154.97,154.93,22.9771]
[1727724039656,6.4525,154.98,154.94,6.4539]
[1727724040158,6.4528,154.97,154.93,22.9773]
[1727724040658,6.4526,154.98,154.93,16.5229]
[1727724040865,6.4526,154.98,154.94,6.454]
[1727724047565,6.4526,154.98,154.93,16.1356]
[1727724047566,31.5121,155.04,154.95,7.74388004]
[1727724047770,6.4519,155.0,154.95,7.74388004]
[1727724047968,31.5121,155.04,154.96,1.29039567]
[1727724048141,6.4512,155.01,154.97,6.4527]
[1727724048466,13.55396234,155.08,154.97,6.4527]
[1727724048467,6.4505,155.03,154.98,6.452]
[1727724048642,6.4505,155.03,154.98,1.29014198]
[1727724048845,16.1225,155.07,154.98,12.83456441]
[1727724049140,6.45,155.04,155.0,6.4515]
[1727724049447,6.45,155.04,155.01,1.29002494]
[1727724050179,6.45,155.04,155.0,6.4515]
[1727724050550,6.4492,155.06,155.01,7.74088539]
[1727724050750,6.4492,155.06,155.0,11.54442243]
[1727724050977,6.4492,155.06,155.01,6.4511]
[1727724052053,16.4572,155.08,155.0,0.3873]
[1727724052054,6.4506,155.03,155.0,0.3873]
[1727724052660,41.88645139,155.08,155.0,0.3873]
[1727724052979,6.4499,155.04,155.0,6.8388]
[1727724054252,16.1233,155.06,155.0,0.3873]
[1727724054457,6.4511,155.02,155.0,0.3873]
[1727724055175,6.4511,155.01,155.0,0.3873]
[1727724063088,23.776884,155.01,154.92,20.0]
[1727724063271,6.4538,154.95,154.92,20.0]
[1727724063885,16.1302,154.99,154.92,20.0]
[1727724064190,6.4533,154.96,154.92,26.4549]
[1727724065390,6.4529,154.97,154.92,26.4549]
[1727724065988,6.4529,154.97,154.93,7.7451751]
[1727724066193,6.4529,154.97,154.93,6.4545]
[1727724067466,6.4536,154.96,154.92,42.5918]
[1727724067673,6.454,154.95,154.91,15.3235]
[1727724068073,6.4541,154.94,154.91,15.3235]
[1727724068284,23.776884,155.01,154.89,29.0924]
[1727724068285,6.4546,154.93,154.89,29.0924]
[1727724069572,6.4542,154.94,154.89,29.0924]
[1727724069887,6.454,154.95,154.91,6.4553]
[1727724070088,6.4531,154.97,154.92,7.74533012]
[1727724070605,6.4531,154.97,154.93,6.4545]
[1727724070766,6.4524,154.98,154.94,7.74459961]
[1727724071373,6.452,154.99,154.95,6.4535]
[1727724071579,6.452,154.99,154.94,6.4539]
[1727724071983,6.4525,154.98,154.94,6.4539]
[1727724074270,16.1286,155.01,154.94,6.4539]
[1727724074271,6.4521,154.99,154.94,6.4539]
[1727724074476,6.4521,154.99,154.95,6.4536]
[1727724075994,7.1687104,155.07,154.96,21.29049282]
[1727724075995,15.7145,155.06,154.96,21.29049282]
[1727724076334,6.4507,155.02,154.98,6.4524]
[1727724076969,6.4507,155.02,154.96,20.0]
[1727724076970,16.1242,155.05,154.96,20.0]
[1727724077192,6.4519,155.0,154.96,26.4532]
[1727724077395,6.45,155.04,154.99,6.452]
[1727724077695,31.8358,155.08,155.01,6.4511]
[1727724077992,6.4484,155.08,155.03,6.4503]
[1727724078179,6.4487,155.07,155.04,1.28984252]
[1727724078490,16.1179,155.11,155.03,1.28985456]
[1727724078697,6.4492,155.06,155.02,6.4507]
[1727724079176,6.4492,155.06,155.01,16.1274]
[1727724079382,6.4492,155.06,155.01,22.5785]
[1727724080206,16.1179,155.11,155.01,16.1274]
[1727724080505,6.4488,155.07,155.03,6.4503]
[1727724081009,6.4488,155.07,155.04,1.28981072]
[1727724082592,6.4488,155.07,155.03,6.4503]
[1727724083904,16.1179,155.11,155.01,22.5785]
[1727724084111,23.776884,155.1,155.01,22.5785]
[1727724084293,23.776884,155.1,155.01,16.1274]
[1727724084481,6.4496,155.05,155.01,16.1274]
[1727724084687,6.4491,155.06,155.02,6.4507]
[1727724084887,6.4491,155.06,155.01,22.5784]
[1727724085389,6.449,155.07,155.02,7.74042142]
[1727724085603,6.4491,155.06,155.02,6.4505]
[1727724086188,6.4495,155.05,155.01,16.1274]
[1727724086484,6.4495,155.05,155.01,22.5784]
[1727724089298,6.4499,155.04,155.01,16.1274]
[1727724089617,6.4496,155.05,155.01,16.1274]
[1727724090312,6.4504,155.03,155.0,6.4583]
[1727724094208,23.776884,155.1,154.98,16.4558]
[1727724094209,16.1241,155.05,154.98,16.4558]
[1727724094519,6.4515,155.01,154.98,16.4558]
[1727724095406,6.4509,155.02,154.98,16.4558]
[1727724095798,6.4504,155.03,154.98,17.74608769]
[1727724095999,16.1212,155.08,154.99,16.1298]
[1727724096194,16.1212,155.08,155.0,12.83445145]
[1727724096389,6.4496,155.05,155.01,6.4508]
[1727724096893,16.1212,155.08,155.01,6.4508]
[1727724097112,6.4494,155.06,155.01,6.4508]
[1727724097510,16.1212,155.08,155.01,6.4508]
[1727724097511,6.4496,155.05,155.01,6.4508]
[1727724100717,16.1212,155.08,155.01,6.4508]
[1727724100918,6.4492,155.06,155.01,6.4508]
[1727724102911,6.4492,155.06,155.02,7.74053047]
[1727724103307,6.4492,155.06,155.02,6.4506]
[1727724104923,6.4492,155.06,155.01,16.1276]
[1727724104924,55.1975,155.12,155.01,16.1276]
[1727724105130,55.1975,155.12,154.98,16.4558]
[1727724105131,32.15384651,155.11,154.98,39.0381]
[1727724105302,16.1223,155.07,154.98,39.0381]
[1727724105499,6.4504,155.03,154.99,6.452]
[1727724108914,6.4507,155.02,154.98,39.0383]
[1727724110615,22.87155555,155.1,155.01,20.0]
[1727724110816,16.1194,155.1,155.02,1.28997953]
[1727724111209,16.1194,155.1,155.01,20.0]
[1727724111417,22.9642,155.12,155.01,20.0]
[1727724111418,6.448,155.09,155.05,6.4492]
[1727724114721,16.3516,155.12,155.04,16.1242]
[1727724114912,6.4488,155.07,155.04,16.1242]
[1727724115838,6.4483,155.08,155.04,17.41401547]
[1727724116146,6.4483,155.08,155.04,16.1242]
[1727724117232,6.4479,155.09,155.05,1.28981561]
[1727724117434,6.4479,155.09,155.05,7.73921561]
[1727724118818,16.3516,155.12,155.05,7.73921561]
[1727724119024,6.4475,155.1,155.05,7.73921561]
[1727724119238,6.4475,155.1,155.05,1.28981561]
[1727724119542,6.4475,155.1,155.06,6.449]
[1727724119956,16.1158,155.13,155.04,43.99802243]
[1727724120122,6.4479,155.09,155.05,6.4494]
[1727724121243,6.4482,155.08,155.04,38.9033]
[1727724122021,68.31084795,155.16,155.04,16.3294]
[1727724122022,6.449,155.07,155.04,16.3294]
[1727724122416,6.4491,155.06,155.04,16.3294]
[1727724122833,6.4491,155.06,155.02,6.4506]
[1727724124641,6.4489,155.07,155.03,6.4503]
[1727724130123,6.4498,155.05,155.01,22.5782]
[1727724130425,6.4501,155.04,155.01,16.1272]
[1727724136448,23.776884,155.09,154.98,20.0]
[1727724136670,6.4507,155.03,154.99,6.4517]
[1727724136826,6.4508,155.02,154.98,22.5825]
[1727724142662,6.4504,155.03,154.99,7.74214252]
[1727724143557,6.45,155.04,155.0,6.4515]
[1727724147151,6.45,155.04,155.01,1.29013799]
[1727724147351,15.7428,155.06,155.01,7.74123799]
[1727724147648,6.4491,155.06,155.02,6.4506]
[1727724148063,6.4498,155.05,155.01,6.4511]
[1727724149257,6.45,155.04,155.0,22.5795]
[1727724149454,23.776884,155.07,154.99,20.0]
[1727724149655,6.4505,155.03,154.99,26.4517]
[1727724150667,6.4505,155.03,154.99,6.4517]
[1727724153457,23.776884,155.07,155.0,1.29016759]
[1727724153657,6.45,155.04,155.0,1.29016759]
[1727724154456,16.121,155.08,154.99,16.1296]
[1727724154665,6.4496,155.05,155.01,6.4508]
[1727724154867,6.4496,155.05,155.02,1.29001995]
[1727724155567,6.4496,155.05,155.01,6.4508]
[1727724155786,16.121,155.08,155.0,6.4515]
[1727724155787,6.45,155.04,155.0,6.4515]
[1727724165485,6.45,155.04,155.0,7.74157787]
[1727724166395,6.45,155.04,155.0,6.4515]
[1727724166681,6.45,155.04,155.0,7.74157648]
[1727724166978,6.45,155.04,155.0,6.4515]
[1727724171990,6.4496,155.05,155.01,6.4511]
[1727724173682,16.121,155.08,154.98,11.54442243]
[1727724173908,6.4492,155.06,155.02,6.4507]
[1727724174066,6.4492,155.06,155.02,7.74067317]
[1727724174482,21.6854,155.1,155.02,7.74067317]
[1727724174671,21.6854,155.1,155.02,1.28997317]
[1727724174872,6.448,155.09,155.05,6.4492]
[1727724175189,6.448,155.09,155.06,1.28968141]
[1727724175484,21.6549,155.1,155.06,1.28968141]
[1727724175676,21.6549,155.1,155.06,7.73868141]
[1727724176068,21.6549,155.1,155.06,6.449]
[1727724178286,21.6549,155.1,155.05,22.5727]
[1727724178486,21.6549,155.1,155.02,11.54442243]
[1727724178487,6.4461,155.14,155.08,23.776884]
[1727724178792,16.2321,155.16,155.1,6.4474]
[1727724178793,6.4453,155.15,155.1,6.4474]
[1727724178996,6.4453,155.15,155.11,1.28919472]
[1727724179786,16.2321,155.16,155.12,6.4464]
[1727724179787,22.677,155.16,155.12,6.4464]
[1727724179999,22.677,155.16,155.13,1.28918905]
[1727724180204,22.677,155.16,155.12,6.4464]
[1727724180491,6.4456,155.15,155.09,16.119]
[1727724180688,16.2321,155.16,155.1,6.4474]
[1727724180881,6.4454,155.15,155.11,1.28919105]
[1727724181469,6.4454,155.15,155.1,6.4474]
[1727724183177,6.4454,155.15,155.11,7.73600256]
[1727724183391,6.4454,155.15,155.11,6.4469]
[1727724184081,6.4458,155.14,155.1,6.4473]
[1727724184983,16.2321,155.16,155.09,16.119]
[1727724185202,6.4466,155.12,155.09,16.119]
[1727724186111,16.2321,155.16,155.08,20.0]
[1727724186112,6.447,155.11,155.08,20.0]
[1727724186288,22.4835,155.14,155.03,16.1251]
[1727724186600,6.4474,155.1,155.06,6.4491]
[1727724186813,22.4835,155.14,155.05,16.1234]
[1727724186814,15.698,155.11,155.05,16.1234]
[1727724186992,15.698,155.11,155.03,6.4503]
[1727724186993,6.4487,155.07,155.03,6.4503]
[1727724187394,6.4483,155.08,155.02,16.1262]
[1727724187598,6.448,155.09,155.04,6.4499]
[1727724187991,6.4483,155.08,155.04,6.4499]
[1727724188399,15.698,155.11,155.04,6.4499]
[1727724188604,6.4479,155.09,155.04,6.4499]
[1727724193921,6.4485,155.08,155.04,6.4499]
[1727724194093,15.698,155.11,155.03,20.0]
[1727724194288,6.4492,155.06,155.02,22.5767]
[1727724194507,15.698,155.11,155.02,22.5767]
[1727724194508,6.4488,155.07,155.02,22.5767]
[1727724195400,6.4488,155.07,155.03,6.4503]
[1727724195812,15.698,155.11,155.02,16.1262]
[1727724195998,15.698,155.11,155.02,22.5769]
[1727724196193,6.4488,155.07,155.02,22.5769]
[1727724197209,6.4499,155.05,155.01,43.776884]
[1727724197409,6.4499,155.05,155.01,26.451]
[1727724197626,16.2539,155.06,154.99,22.5812]
[1727724198497,6.45,155.04,154.99,22.5812]
[1727724200215,6.4503,155.03,154.99,22.5812]
[1727724200794,16.2539,155.06,154.96,43.80882243]
[1727724201001,6.4511,155.02,154.98,6.4523]
[1727724201217,6.4511,155.02,154.97,20.0]
[1727724201510,6.4511,155.02,154.97,26.4527]
[1727724201709,6.4511,155.02,154.98,6.4524]
[1727724202516,6.4503,155.03,154.99,6.4519]
[1727724203313,6.4503,155.03,154.98,16.1308]
[1727724203524,6.4503,155.03,154.98,22.583]
[1727724203695,32.3771,155.06,154.98,22.583]
[1727724203894,6.4507,155.02,154.98,22.583]
[1727724204419,32.3771,155.06,154.95,16.1334]
[1727724204420,16.1251,155.04,154.95,16.1334]
[1727724204596,15.7629,155.01,154.95,16.1334]
[1727724204916,6.4524,154.98,154.95,16.1334]
[1727724205627,6.4521,154.99,154.95,16.1334]
[1727724205793,6.4521,154.99,154.95,22.5869]
[1727724209919,6.4517,155.0,154.95,22.5869]
[1727724211825,6.4517,155.0,154.96,1.29051325]
[1727724213935,6.4517,155.0,154.95,22.5869]